[Event "Live Chess"]
[Site "Chess.com"]
[Date "2023.05.20"]
[Round "-"]
[White "Goblinbasher"]
[Black "kevinmilleruk"]
[Result "1-0"]
[WhiteElo "1217"]
[BlackElo "1137"]
[TimeControl "300"]
[EndTime "13:07:13 PDT"]
[Termination "Goblinbasher won by resignation"]

1. e4 {[%clk 0:04:58.1]} 1... e5 {[%clk 0:04:59.6]} 2. Nc3 {[%clk 0:04:56.5]}
2... Nf6 {[%clk 0:04:58.8]} 3. f4 {[%clk 0:04:54.6]} 3... exf4 {[%clk
0:04:56.9]} 4. e5 {[%clk 0:04:53.6]} 4... Ng8 {[%clk 0:04:51.9]} 5. Nf3 {[%clk
0:04:52.3]} 5... g5 {[%clk 0:04:49.4]} 6. h4 {[%clk 0:04:50.2]} 6... f6 {[%clk
0:04:45.7]} 7. exf6 {[%clk 0:04:47]} 7... Nxf6 {[%clk 0:04:43.9]} 8. Bc4 {[%clk
0:04:42.3]} 8... Qe7+ {[%clk 0:04:41.9]} 9. Ne2 {[%clk 0:04:33.9]} 9... d5
{[%clk 0:04:35.5]} 10. Bb3 {[%clk 0:04:27.6]} 10... c5 {[%clk 0:04:33.5]} 11. d4
{[%clk 0:04:24.6]} 11... c4 {[%clk 0:04:32.3]} 12. Ba4+ {[%clk 0:04:22.5]} 12...
Bd7 {[%clk 0:04:30.5]} 13. Bxd7+ {[%clk 0:04:21.2]} 13... Nbxd7 {[%clk
0:04:30.1]} 14. Nxg5 {[%clk 0:04:17.5]} 14... Bg7 {[%clk 0:04:17.2]} 15. c3
{[%clk 0:04:15.8]} 15... Ne4 {[%clk 0:04:13.7]} 16. Nxe4 {[%clk 0:04:08.9]}
16... dxe4 {[%clk 0:04:11.9]} 17. Nxf4 {[%clk 0:04:01.7]} 17... Bh6 {[%clk
0:04:07.1]} 18. g3 {[%clk 0:04:00.1]} 18... O-O-O {[%clk 0:03:58.2]} 19. Be3
{[%clk 0:03:57.6]} 19... Nf6 {[%clk 0:03:56]} 20. Qe2 {[%clk 0:03:52.3]} 20...
Bxf4 {[%clk 0:03:51.7]} 21. gxf4 {[%clk 0:03:48.4]} 21... Nd5 {[%clk 0:03:46]}
22. Qxc4+ {[%clk 0:03:46.1]} 22... Kb8 {[%clk 0:03:35.1]} 23. Qe2 {[%clk
0:03:43.2]} 23... Nxe3 {[%clk 0:03:25.9]} 24. Qxe3 {[%clk 0:03:41.9]} 24... h5
{[%clk 0:03:19.7]} 25. O-O-O {[%clk 0:03:38.8]} 25... Rde8 {[%clk 0:03:10.1]}
26. Kb1 {[%clk 0:03:34.6]} 26... a6 {[%clk 0:03:07.1]} 27. c4 {[%clk 0:03:26.7]}
27... Rhg8 {[%clk 0:02:58]} 28. d5 {[%clk 0:03:23.7]} 28... Qb4 {[%clk
0:02:51.3]} 29. c5 {[%clk 0:03:12.7]} 29... Rg2 {[%clk 0:02:48.7]} 30. Qb3
{[%clk 0:03:03.9]} 30... Qxc5 {[%clk 0:02:39.5]} 31. d6 {[%clk 0:02:58]} 31...
e3 {[%clk 0:02:36.7]} 32. Rhe1 {[%clk 0:02:53.6]} 32... e2 {[%clk 0:02:32.4]}
33. d7 {[%clk 0:02:51]} 33... Rd8 {[%clk 0:02:28.8]} 34. Rd2 {[%clk 0:02:43.9]}
34... Qf2 {[%clk 0:02:19.7]} 35. Rdxe2 {[%clk 0:02:07.5]} 35... Qxe2 {[%clk
0:02:07]} 36. Rxe2 {[%clk 0:02:06.2]} 36... Rxe2 {[%clk 0:02:05.4]} 37. Qd3
{[%clk 0:01:55.4]} 37... Rh2 {[%clk 0:01:57.3]} 38. a3 {[%clk 0:01:48.2]} 38...
Kc7 {[%clk 0:01:53.7]} 39. f5 {[%clk 0:01:42.7]} 39... Rxd7 {[%clk 0:01:51.2]}
40. Qg3+ {[%clk 0:01:41.1]} 40... Kd8 {[%clk 0:01:44.3]} 41. Qxh2 {[%clk
0:01:40]} 41... Rd1+ {[%clk 0:01:44.2]} 42. Ka2 {[%clk 0:01:38.6]} 42... Rf1
{[%clk 0:01:43.1]} 43. Qe5 {[%clk 0:01:36.1]} 43... b5 {[%clk 0:01:38]} 44. f6
{[%clk 0:01:32.5]} 44... b4 {[%clk 0:01:33.2]} 45. axb4 {[%clk 0:01:30.6]} 45...
a5 {[%clk 0:01:32.1]} 46. bxa5 {[%clk 0:01:28.8]} 46... Ra1+ {[%clk 0:01:31.2]}
1-0

[Event "Live Chess"]
[Site "Chess.com"]
[Date "2023.05.20"]
[Round "-"]
[White "DerbyKnight"]
[Black "mightysmasher"]
[Result "0-1"]
[WhiteElo "1541"]
[BlackElo "2125"]
[TimeControl "300"]
[EndTime "13:07:38 PDT"]
[Termination "mightysmasher won by resignation"]

1. e4 {[%clk 0:04:55.8]} 1... e6 {[%clk 0:04:58.6]} 2. d4 {[%clk 0:04:54.3]}
2... d5 {[%clk 0:04:57.8]} 3. exd5 {[%clk 0:04:54.2]} 3... exd5 {[%clk
0:04:57.1]} 4. Nf3 {[%clk 0:04:52.8]} 4... Nf6 {[%clk 0:04:56.5]} 5. Bd3 {[%clk
0:04:52.2]} 5... Bd6 {[%clk 0:04:55.7]} 6. Qe2+ {[%clk 0:04:50.5]} 6... Be6
{[%clk 0:04:53.9]} 7. O-O {[%clk 0:04:46.8]} 7... O-O {[%clk 0:04:52.6]} 8. Ne5
{[%clk 0:04:43.9]} 8... c5 {[%clk 0:04:50.8]} 9. c3 {[%clk 0:04:42.2]} 9... Nc6
{[%clk 0:04:50.2]} 10. dxc5 {[%clk 0:04:27.4]} 10... Bxe5 {[%clk 0:04:48.6]} 11.
b4 {[%clk 0:04:19.2]} 11... a6 {[%clk 0:04:45.4]} 12. a4 {[%clk 0:04:17.3]}
12... Bc7 {[%clk 0:04:43.4]} 13. Bb2 {[%clk 0:04:03]} 13... Ne5 {[%clk 0:04:42]}
14. Bc2 {[%clk 0:03:57.7]} 14... Nc4 {[%clk 0:04:38.4]} 15. Bc1 {[%clk
0:03:52.3]} 15... Qb8 {[%clk 0:04:20.8]} 16. h3 {[%clk 0:03:47.4]} 16... h6
{[%clk 0:04:14.3]} 17. Nd2 {[%clk 0:03:35.4]} 17... Re8 {[%clk 0:04:10.5]} 18.
Qf3 {[%clk 0:03:27.8]} 18... Nxd2 {[%clk 0:04:07]} 19. Bxd2 {[%clk 0:03:25.5]}
19... Ne4 {[%clk 0:04:05.9]} 20. Be3 {[%clk 0:03:15.3]} 20... Be5 {[%clk
0:03:59.8]} 21. Bd4 {[%clk 0:03:12.4]} 21... Bxd4 {[%clk 0:03:58]} 22. cxd4
{[%clk 0:03:11.2]} 22... Qd8 {[%clk 0:03:55.6]} 23. Rad1 {[%clk 0:02:58.3]}
23... Qd7 {[%clk 0:03:50.5]} 24. Rfe1 {[%clk 0:02:54.8]} 24... Ng5 {[%clk
0:03:46.8]} 25. Qg3 {[%clk 0:02:48.2]} 25... Ne4 {[%clk 0:03:45.4]} 26. Bxe4
{[%clk 0:02:45]} 26... dxe4 {[%clk 0:03:44]} 27. Rxe4 {[%clk 0:02:39.6]} 27...
Qxa4 {[%clk 0:03:42.8]} 28. Rde1 {[%clk 0:02:32.1]} 28... Qxb4 {[%clk
0:03:41.2]} 29. d5 {[%clk 0:02:30.8]} 29... Qxc5 {[%clk 0:03:40.4]} 30. dxe6
{[%clk 0:02:28.1]} 30... Rxe6 {[%clk 0:03:39]} 31. Rxe6 {[%clk 0:02:22.8]} 31...
fxe6 {[%clk 0:03:37.9]} 32. Rxe6 {[%clk 0:02:21.7]} 32... Rf8 {[%clk 0:03:37.1]}
33. Rg6 {[%clk 0:02:13.3]} 33... Rf7 {[%clk 0:03:35.9]} 34. Rxh6 {[%clk
0:02:10.8]} 34... Rxf2 {[%clk 0:03:29.7]} 35. Qb8+ {[%clk 0:01:46.3]} 35... Rf8+
{[%clk 0:03:26.7]} 0-1

[Event "Live Chess"]
[Site "Chess.com"]
[Date "2023.05.20"]
[Round "-"]
[White "TheSmoulderingMaster"]
[Black "Wild_Tiger"]
[Result "1-0"]
[WhiteElo "1750"]
[BlackElo "1056"]
[TimeControl "300"]
[EndTime "13:08:06 PDT"]
[Termination "TheSmoulderingMaster won by checkmate"]

1. e4 {[%clk 0:04:58.8]} 1... e5 {[%clk 0:04:57.3]} 2. Nf3 {[%clk 0:04:57.8]}
2... Nc6 {[%clk 0:04:56.5]} 3. Bb5 {[%clk 0:04:57]} 3... a6 {[%clk 0:04:53.1]}
4. Ba4 {[%clk 0:04:55.9]} 4... b5 {[%clk 0:04:51.6]} 5. Bb3 {[%clk 0:04:55.1]}
5... Bb4 {[%clk 0:04:45.6]} 6. O-O {[%clk 0:04:53.5]} 6... Nf6 {[%clk
0:04:40.2]} 7. c3 {[%clk 0:04:52.6]} 7... Bd6 {[%clk 0:04:35.5]} 8. d4 {[%clk
0:04:51.5]} 8... Nxe4 {[%clk 0:04:30]} 9. Re1 {[%clk 0:04:50.5]} 9... Nf6 {[%clk
0:04:23.5]} 10. dxe5 {[%clk 0:04:47.5]} 10... Nxe5 {[%clk 0:04:16.4]} 11. Nxe5
{[%clk 0:04:46.4]} 11... Bxe5 {[%clk 0:04:13.7]} 12. Rxe5+ {[%clk 0:04:44.7]}
12... Kf8 {[%clk 0:04:10.4]} 13. Bg5 {[%clk 0:04:42.1]} 13... d6 {[%clk
0:04:07.1]} 14. Re3 {[%clk 0:04:40.6]} 14... h6 {[%clk 0:03:58.1]} 15. Bh4
{[%clk 0:04:37.4]} 15... g5 {[%clk 0:03:54.6]} 16. Bg3 {[%clk 0:04:36.5]} 16...
Ng4 {[%clk 0:03:49.9]} 17. Rf3 {[%clk 0:04:32.5]} 17... Kg7 {[%clk 0:03:36]} 18.
Rxf7+ {[%clk 0:04:30]} 18... Kg6 {[%clk 0:03:30.8]} 19. Qd3+ {[%clk 0:04:25.3]}
19... Bf5 {[%clk 0:03:27]} 20. Qxf5+ {[%clk 0:04:24.3]} 20... Kh5 {[%clk
0:03:24.3]} 21. Bd1 {[%clk 0:04:20]} 21... Rf8 {[%clk 0:03:19.3]} 22. Bxg4#
{[%clk 0:04:18]} 1-0

[Event "Live Chess"]
[Site "Chess.com"]
[Date "2023.05.20"]
[Round "-"]
[White "Richardallis"]
[Black "ExIsambard"]
[Result "1-0"]
[WhiteElo "1812"]
[BlackElo "1991"]
[TimeControl "300"]
[EndTime "13:08:15 PDT"]
[Termination "Richardallis won by resignation"]

1. d4 {[%clk 0:04:53]} 1... Nf6 {[%clk 0:04:58.7]} 2. Nf3 {[%clk 0:04:52.3]}
2... d5 {[%clk 0:04:57.3]} 3. Bg5 {[%clk 0:04:51.7]} 3... c6 {[%clk 0:04:56.3]}
4. c3 {[%clk 0:04:50.4]} 4... e6 {[%clk 0:04:54.8]} 5. Nbd2 {[%clk 0:04:49]}
5... Bd6 {[%clk 0:04:54.3]} 6. e4 {[%clk 0:04:47.4]} 6... dxe4 {[%clk
0:04:52.9]} 7. Nxe4 {[%clk 0:04:46.9]} 7... Be7 {[%clk 0:04:52.7]} 8. Bxf6
{[%clk 0:04:46]} 8... gxf6 {[%clk 0:04:51.1]} 9. Bd3 {[%clk 0:04:45.5]} 9... Nd7
{[%clk 0:04:44.2]} 10. O-O {[%clk 0:04:43.9]} 10... Qa5 {[%clk 0:04:42.7]} 11.
Re1 {[%clk 0:04:41.3]} 11... h6 {[%clk 0:04:40]} 12. Qe2 {[%clk 0:04:37.7]}
12... f5 {[%clk 0:04:36.2]} 13. Ng3 {[%clk 0:04:36.4]} 13... Nf6 {[%clk
0:04:32.5]} 14. Bxf5 {[%clk 0:04:33]} 14... Nd5 {[%clk 0:04:26.1]} 15. Bd3
{[%clk 0:04:28.1]} 15... Bd7 {[%clk 0:04:22.4]} 16. Ne5 {[%clk 0:04:22.9]} 16...
Nf4 {[%clk 0:04:19.6]} 17. Qf3 {[%clk 0:04:18.8]} 17... Nxd3 {[%clk 0:04:18.1]}
18. Qxd3 {[%clk 0:04:17]} 18... Bd6 {[%clk 0:03:57.1]} 19. b4 {[%clk 0:04:10.4]}
19... Qc7 {[%clk 0:03:52.4]} 20. f4 {[%clk 0:04:08.9]} 20... a5 {[%clk
0:03:40.8]} 21. a3 {[%clk 0:04:06.3]} 21... Be7 {[%clk 0:03:25.1]} 22. Ne4
{[%clk 0:04:01.3]} 22... f5 {[%clk 0:03:20.9]} 23. Ng3 {[%clk 0:03:54.4]} 23...
O-O-O {[%clk 0:03:13.9]} 24. Nf7 {[%clk 0:03:46.9]} 24... Rdf8 {[%clk
0:03:13.2]} 25. Nxh8 {[%clk 0:03:45.3]} 25... Rxh8 {[%clk 0:03:13.1]} 26. Nxf5
{[%clk 0:03:43.8]} 26... Bf6 {[%clk 0:03:05.9]} 27. Ng3 {[%clk 0:03:36.8]} 27...
Qxf4 {[%clk 0:03:04]} 28. Rf1 {[%clk 0:03:28.8]} 28... Qg5 {[%clk 0:02:59.2]}
29. Ne4 {[%clk 0:03:23.8]} 1-0

[Event "Live Chess"]
[Site "Chess.com"]
[Date "2023.05.20"]
[Round "-"]
[White "OSmith06"]
[Black "Ian-Morley"]
[Result "1-0"]
[WhiteElo "1664"]
[BlackElo "975"]
[TimeControl "300"]
[EndTime "13:08:17 PDT"]
[Termination "OSmith06 won by checkmate"]

1. e4 {[%clk 0:04:58.5]} 1... d5 {[%clk 0:04:56.6]} 2. exd5 {[%clk 0:04:57.4]}
2... Qxd5 {[%clk 0:04:52]} 3. Nf3 {[%clk 0:04:57.3]} 3... Qe6+ {[%clk 0:04:49]}
4. Qe2 {[%clk 0:04:55.2]} 4... Qxe2+ {[%clk 0:04:45.5]} 5. Bxe2 {[%clk
0:04:55.1]} 5... Bd7 {[%clk 0:04:42.4]} 6. c4 {[%clk 0:04:53]} 6... Nc6 {[%clk
0:04:40.1]} 7. d4 {[%clk 0:04:51.3]} 7... e6 {[%clk 0:04:38.6]} 8. Nc3 {[%clk
0:04:47.8]} 8... Bb4 {[%clk 0:04:37.9]} 9. Bd2 {[%clk 0:04:45.4]} 9... Bxc3
{[%clk 0:04:36.1]} 10. Bxc3 {[%clk 0:04:45.3]} 10... O-O-O {[%clk 0:04:33.4]}
11. O-O {[%clk 0:04:42.3]} 11... Nge7 {[%clk 0:04:32.7]} 12. a4 {[%clk
0:04:38.4]} 12... Nf5 {[%clk 0:04:31.3]} 13. b4 {[%clk 0:04:27.2]} 13... Nce7
{[%clk 0:04:24.5]} 14. b5 {[%clk 0:04:20.9]} 14... b6 {[%clk 0:04:16.1]} 15. a5
{[%clk 0:04:17.1]} 15... Kb7 {[%clk 0:04:09.8]} 16. axb6 {[%clk 0:04:12.2]}
16... cxb6 {[%clk 0:04:06]} 17. Ra2 {[%clk 0:04:04.5]} 17... Ng6 {[%clk
0:04:01.9]} 18. Rfa1 {[%clk 0:04:01.9]} 18... Ra8 {[%clk 0:03:56.9]} 19. Ne5
{[%clk 0:04:00.3]} 19... Nxe5 {[%clk 0:03:55.3]} 20. dxe5 {[%clk 0:03:59]} 20...
Kc7 {[%clk 0:03:52.4]} 21. Bf3 {[%clk 0:03:52.6]} 21... Rab8 {[%clk 0:03:44.5]}
22. Rxa7+ {[%clk 0:03:50.9]} 22... Kd8 {[%clk 0:03:40.8]} 23. Rd1 {[%clk
0:03:40.7]} 23... Ke7 {[%clk 0:03:24.7]} 24. Rdxd7+ {[%clk 0:03:38.3]} 24... Kf8
{[%clk 0:03:22.8]} 25. Rxf7+ {[%clk 0:03:37.1]} 25... Kg8 {[%clk 0:03:21.1]} 26.
Rxf5 {[%clk 0:03:28.4]} 26... exf5 {[%clk 0:03:18.9]} 27. Bd5+ {[%clk 0:03:27]}
27... Kf8 {[%clk 0:03:16.4]} 28. Bb4+ {[%clk 0:03:26.3]} 28... Ke8 {[%clk
0:03:15.1]} 29. Bf7+ {[%clk 0:03:24.4]} 29... Kd8 {[%clk 0:03:13.6]} 30. Be7+
{[%clk 0:03:23.3]} 30... Kc8 {[%clk 0:03:12.2]} 31. Be6# {[%clk 0:03:22.9]} 1-0

[Event "Live Chess"]
[Site "Chess.com"]
[Date "2023.05.20"]
[Round "-"]
[White "JormaIbo"]
[Black "Greenbecker"]
[Result "0-1"]
[WhiteElo "420"]
[BlackElo "1626"]
[TimeControl "300"]
[EndTime "13:08:18 PDT"]
[Termination "Greenbecker won by resignation"]

1. e4 {[%clk 0:04:58.8]} 1... e6 {[%clk 0:04:58.9]} 2. Nc3 {[%clk 0:04:54]} 2...
d5 {[%clk 0:04:58.3]} 3. exd5 {[%clk 0:04:52.4]} 3... exd5 {[%clk 0:04:57.4]} 4.
d4 {[%clk 0:04:50.1]} 4... Nf6 {[%clk 0:04:56.1]} 5. Bf4 {[%clk 0:04:42.8]} 5...
Bb4 {[%clk 0:04:54.8]} 6. Bd2 {[%clk 0:04:31.8]} 6... O-O {[%clk 0:04:53.1]} 7.
Nf3 {[%clk 0:04:30.8]} 7... Re8+ {[%clk 0:04:52]} 8. Ne5 {[%clk 0:04:26.8]} 8...
Nc6 {[%clk 0:04:49.5]} 9. Bb5 {[%clk 0:04:23.9]} 9... Bd7 {[%clk 0:04:46.8]} 10.
O-O {[%clk 0:04:22.1]} 10... Nxe5 {[%clk 0:04:44.2]} 11. dxe5 {[%clk 0:04:18.2]}
11... Rxe5 {[%clk 0:04:42.7]} 12. Bxd7 {[%clk 0:04:10.8]} 12... Qxd7 {[%clk
0:04:41.7]} 13. a3 {[%clk 0:04:02.2]} 13... Bxc3 {[%clk 0:04:38]} 14. Bxc3
{[%clk 0:04:00.9]} 14... Re6 {[%clk 0:04:37.1]} 15. Re1 {[%clk 0:03:57.2]} 15...
Rae8 {[%clk 0:04:35.2]} 16. Rxe6 {[%clk 0:03:54.2]} 16... Qxe6 {[%clk
0:04:32.8]} 17. Qd4 {[%clk 0:03:38.4]} 17... Qe4 {[%clk 0:04:23.7]} 18. Qxa7
{[%clk 0:03:30.7]} 18... d4 {[%clk 0:04:00.6]} 19. Bb4 {[%clk 0:03:29.2]} 19...
Nd5 {[%clk 0:03:46.4]} 20. Qxb7 {[%clk 0:02:58.4]} 20... Nxb4 {[%clk 0:03:42.9]}
21. Qxb4 {[%clk 0:02:50.1]} 21... Qxc2 {[%clk 0:03:31.3]} 22. Re1 {[%clk
0:02:41.5]} 22... Rxe1+ {[%clk 0:03:25.3]} 23. Qxe1 {[%clk 0:02:39.9]} 23... Qc6
{[%clk 0:03:19.8]} 24. h3 {[%clk 0:02:34.2]} 24... h6 {[%clk 0:03:14.4]} 25. Qe5
{[%clk 0:02:09.2]} 25... Qc1+ {[%clk 0:03:04]} 26. Kh2 {[%clk 0:02:07.8]} 26...
Qxb2 {[%clk 0:03:02.9]} 27. a4 {[%clk 0:02:06.7]} 27... Qb6 {[%clk 0:02:53.4]}
28. a5 {[%clk 0:02:04]} 28... Qa7 {[%clk 0:02:49.1]} 29. g4 {[%clk 0:01:57.2]}
29... c5 {[%clk 0:02:45.3]} 30. Qe8+ {[%clk 0:01:48.4]} 30... Kh7 {[%clk
0:02:43.4]} 31. Qxf7 {[%clk 0:01:32]} 31... Qxf7 {[%clk 0:02:41.2]} 0-1

[Event "Live Chess"]
[Site "Chess.com"]
[Date "2023.05.20"]
[Round "-"]
[White "friarnator"]
[Black "fso"]
[Result "0-1"]
[WhiteElo "1987"]
[BlackElo "2263"]
[TimeControl "300"]
[EndTime "13:08:21 PDT"]
[Termination "fso won by resignation"]

1. d4 {[%clk 0:04:54.8]} 1... Nf6 {[%clk 0:04:57.2]} 2. Nc3 {[%clk 0:04:53.9]}
2... e5 {[%clk 0:04:43.6]} 3. dxe5 {[%clk 0:04:46.9]} 3... Ng4 {[%clk
0:04:43.1]} 4. Nf3 {[%clk 0:04:45.1]} 4... Nc6 {[%clk 0:04:42.6]} 5. Bf4 {[%clk
0:04:44.1]} 5... Bb4 {[%clk 0:04:36.4]} 6. e3 {[%clk 0:04:37.8]} 6... Qe7 {[%clk
0:04:34.7]} 7. Be2 {[%clk 0:04:14.6]} 7... Ngxe5 {[%clk 0:04:31.9]} 8. O-O
{[%clk 0:04:10.3]} 8... Bxc3 {[%clk 0:04:29.4]} 9. bxc3 {[%clk 0:04:10.2]} 9...
O-O {[%clk 0:04:27.7]} 10. Nxe5 {[%clk 0:04:05.9]} 10... Nxe5 {[%clk 0:04:26.3]}
11. Qd4 {[%clk 0:04:04.7]} 11... d6 {[%clk 0:04:21.4]} 12. c4 {[%clk 0:04:00.9]}
12... b6 {[%clk 0:04:20.1]} 13. a4 {[%clk 0:03:58.3]} 13... a5 {[%clk
0:04:16.5]} 14. Rfd1 {[%clk 0:03:36.9]} 14... Bb7 {[%clk 0:04:14.4]} 15. Bxe5
{[%clk 0:03:32.7]} 15... dxe5 {[%clk 0:04:07.5]} 16. Qd7 {[%clk 0:03:26.7]}
16... Qc5 {[%clk 0:04:07]} 17. h4 {[%clk 0:03:09.7]} 17... h6 {[%clk 0:04:00.1]}
18. Bd3 {[%clk 0:02:53.4]} 18... Bc8 {[%clk 0:03:06.2]} 19. Qd5 {[%clk
0:02:47.8]} 19... Qxd5 {[%clk 0:02:53.2]} 20. cxd5 {[%clk 0:02:47.7]} 20... Bb7
{[%clk 0:02:49.5]} 21. e4 {[%clk 0:02:39.6]} 21... Rad8 {[%clk 0:02:48.8]} 22.
c4 {[%clk 0:02:36.6]} 22... Rd6 {[%clk 0:02:37.4]} 23. Rab1 {[%clk 0:02:34.5]}
23... Ba6 {[%clk 0:02:27.8]} 24. Kf1 {[%clk 0:02:20.4]} 24... c6 {[%clk
0:02:21.8]} 25. Ke2 {[%clk 0:02:18.4]} 25... cxd5 {[%clk 0:02:19.1]} 26. cxd5
{[%clk 0:02:17.6]} 26... Bxd3+ {[%clk 0:02:17.8]} 27. Rxd3 {[%clk 0:02:14.3]}
27... f5 {[%clk 0:02:17.2]} 28. f3 {[%clk 0:02:12.5]} 28... fxe4 {[%clk
0:02:16.4]} 29. fxe4 {[%clk 0:02:11.2]} 29... Rf4 {[%clk 0:02:16]} 30. Ke3
{[%clk 0:01:57.2]} 30... Rxh4 {[%clk 0:02:14.3]} 31. Rdb3 {[%clk 0:01:54.3]}
31... Rg6 {[%clk 0:02:08.9]} 32. Rxb6 {[%clk 0:01:48.2]} 32... Rxg2 {[%clk
0:02:07.1]} 33. Kf3 {[%clk 0:01:42.4]} 33... Rhg4 {[%clk 0:02:01.7]} 0-1

[Event "Live Chess"]
[Site "Chess.com"]
[Date "2023.05.20"]
[Round "-"]
[White "Hacker_2009"]
[Black "Woodpusher500"]
[Result "1-0"]
[WhiteElo "1909"]
[BlackElo "1280"]
[TimeControl "300"]
[EndTime "13:08:21 PDT"]
[Termination "Hacker_2009 won by resignation"]

1. d4 {[%clk 0:04:56.1]} 1... c5 {[%clk 0:04:56.9]} 2. Nf3 {[%clk 0:04:55.1]}
2... cxd4 {[%clk 0:04:50]} 3. Nxd4 {[%clk 0:04:55]} 3... e5 {[%clk 0:04:40]} 4.
Nf3 {[%clk 0:04:51.1]} 4... Nc6 {[%clk 0:04:34.9]} 5. e3 {[%clk 0:04:36.9]} 5...
d5 {[%clk 0:04:30.3]} 6. c4 {[%clk 0:04:30.5]} 6... Nf6 {[%clk 0:04:22.8]} 7.
cxd5 {[%clk 0:04:18.9]} 7... Nxd5 {[%clk 0:04:17.1]} 8. Bc4 {[%clk 0:04:18.6]}
8... Be6 {[%clk 0:03:54.4]} 9. b3 {[%clk 0:04:08.1]} 9... e4 {[%clk 0:03:43.7]}
10. Nd4 {[%clk 0:04:05]} 10... Nxd4 {[%clk 0:03:36.6]} 11. Qxd4 {[%clk
0:04:03.7]} 11... f5 {[%clk 0:03:20.9]} 12. O-O {[%clk 0:04:01.9]} 12... Rc8
{[%clk 0:03:14.9]} 13. Bb2 {[%clk 0:03:58.5]} 13... Qe7 {[%clk 0:02:54.7]} 14.
Bxd5 {[%clk 0:03:52.6]} 14... Bxd5 {[%clk 0:02:49.5]} 15. Qxd5 {[%clk 0:03:49]}
15... Rd8 {[%clk 0:02:39.5]} 16. Qb5+ {[%clk 0:03:44.6]} 16... Kf7 {[%clk
0:02:35.9]} 17. Qxf5+ {[%clk 0:03:41.3]} 17... Qf6 {[%clk 0:02:33.4]} 18. Bxf6
{[%clk 0:03:37.4]} 1-0

[Event "Live Chess"]
[Site "Chess.com"]
[Date "2023.05.20"]
[Round "-"]
[White "ZombieChainsaw"]
[Black "sup3rm0nk3y"]
[Result "1-0"]
[WhiteElo "1863"]
[BlackElo "1319"]
[TimeControl "300"]
[EndTime "13:08:27 PDT"]
[Termination "ZombieChainsaw won by checkmate"]

1. e4 {[%clk 0:04:58.4]} 1... c5 {[%clk 0:04:57.6]} 2. Nf3 {[%clk 0:04:57]} 2...
Nc6 {[%clk 0:04:56.5]} 3. d3 {[%clk 0:04:56.1]} 3... e6 {[%clk 0:04:55.4]} 4. g3
{[%clk 0:04:55.4]} 4... d5 {[%clk 0:04:53.2]} 5. Qe2 {[%clk 0:04:54.7]} 5...
dxe4 {[%clk 0:04:50.9]} 6. dxe4 {[%clk 0:04:54.6]} 6... Bd6 {[%clk 0:04:46.9]}
7. Bg2 {[%clk 0:04:50.4]} 7... Nge7 {[%clk 0:04:45.1]} 8. O-O {[%clk 0:04:48.9]}
8... O-O {[%clk 0:04:44.3]} 9. Rd1 {[%clk 0:04:48]} 9... Qc7 {[%clk 0:04:42.3]}
10. c3 {[%clk 0:04:38.9]} 10... Be5 {[%clk 0:04:34.5]} 11. Nxe5 {[%clk
0:04:28.4]} 11... Nxe5 {[%clk 0:04:33.2]} 12. f4 {[%clk 0:04:27.6]} 12... N5g6
{[%clk 0:04:31.3]} 13. Be3 {[%clk 0:04:26.3]} 13... b6 {[%clk 0:04:28.2]} 14. h4
{[%clk 0:04:21.7]} 14... Rb8 {[%clk 0:04:26.4]} 15. h5 {[%clk 0:04:19.9]} 15...
Nh8 {[%clk 0:04:23.1]} 16. Nd2 {[%clk 0:04:13.9]} 16... f5 {[%clk 0:04:21.3]}
17. a4 {[%clk 0:03:36.3]} 17... Nf7 {[%clk 0:04:14.6]} 18. Bf2 {[%clk
0:03:22.2]} 18... Bb7 {[%clk 0:04:08.1]} 19. Rac1 {[%clk 0:02:51.6]} 19... a5
{[%clk 0:04:01.7]} 20. b4 {[%clk 0:02:24.4]} 20... axb4 {[%clk 0:03:59.9]} 21.
cxb4 {[%clk 0:02:23.4]} 21... Bc6 {[%clk 0:03:22.4]} 22. b5 {[%clk 0:02:17.9]}
22... Bb7 {[%clk 0:03:20.6]} 23. Nc4 {[%clk 0:02:16.8]} 23... Rfd8 {[%clk
0:03:09.6]} 24. Kh2 {[%clk 0:02:06.1]} 24... Nd6 {[%clk 0:02:35.1]} 25. Nxd6
{[%clk 0:01:53.2]} 25... Rxd6 {[%clk 0:02:34.2]} 26. Qc4 {[%clk 0:01:43.2]}
26... Rbd8 {[%clk 0:02:07.9]} 27. Rxd6 {[%clk 0:01:41.5]} 27... Rxd6 {[%clk
0:02:06.6]} 28. a5 {[%clk 0:01:23.4]} 28... Qd7 {[%clk 0:01:59.7]} 29. axb6
{[%clk 0:01:16.9]} 29... Rxb6 {[%clk 0:01:31.6]} 30. Bxc5 {[%clk 0:01:16]} 30...
Rxb5 {[%clk 0:01:09.9]} 31. Bxe7 {[%clk 0:01:14.9]} 31... fxe4 {[%clk
0:00:42.6]} 32. Ba3 {[%clk 0:01:07.3]} 32... e3 {[%clk 0:00:28]} 33. Bxb7 {[%clk
0:01:05.7]} 33... Qxb7 {[%clk 0:00:21.6]} 34. Qc8+ {[%clk 0:01:04.8]} 34... Qxc8
{[%clk 0:00:19.2]} 35. Rxc8+ {[%clk 0:01:04.2]} 35... Kf7 {[%clk 0:00:18.1]} 36.
Rf8# {[%clk 0:01:03.9]} 1-0

[Event "Live Chess"]
[Site "Chess.com"]
[Date "2023.05.20"]
[Round "-"]
[White "Conradical12"]
[Black "seabuck"]
[Result "0-1"]
[WhiteElo "1576"]
[BlackElo "1860"]
[TimeControl "300"]
[EndTime "13:08:33 PDT"]
[Termination "seabuck won by resignation"]

1. e4 {[%clk 0:04:54.9]} 1... c6 {[%clk 0:04:58.8]} 2. d4 {[%clk 0:04:53.2]}
2... d5 {[%clk 0:04:58.3]} 3. f3 {[%clk 0:04:52.4]} 3... g6 {[%clk 0:04:51.3]}
4. Nc3 {[%clk 0:04:49.2]} 4... Bg7 {[%clk 0:04:49.5]} 5. Be3 {[%clk 0:04:46.4]}
5... dxe4 {[%clk 0:04:45.7]} 6. Nxe4 {[%clk 0:04:44.5]} 6... Nf6 {[%clk
0:04:39.8]} 7. Nc3 {[%clk 0:04:41.4]} 7... Nbd7 {[%clk 0:04:34.6]} 8. Qd2 {[%clk
0:04:41]} 8... O-O {[%clk 0:04:25]} 9. O-O-O {[%clk 0:04:38.4]} 9... b5 {[%clk
0:04:16.8]} 10. h4 {[%clk 0:04:33]} 10... b4 {[%clk 0:04:15.5]} 11. Nce2 {[%clk
0:04:30.6]} 11... a5 {[%clk 0:04:09.8]} 12. g4 {[%clk 0:04:25.9]} 12... Ba6
{[%clk 0:03:50.2]} 13. h5 {[%clk 0:04:23]} 13... Bxe2 {[%clk 0:03:42.4]} 14.
Nxe2 {[%clk 0:04:20.7]} 14... a4 {[%clk 0:03:26.4]} 15. hxg6 {[%clk 0:04:17.5]}
15... fxg6 {[%clk 0:03:24.9]} 16. Nf4 {[%clk 0:04:16]} 16... Qa5 {[%clk
0:03:06.7]} 17. Ne6 {[%clk 0:03:58.5]} 17... Rf7 {[%clk 0:03:01.9]} 18. Bc4
{[%clk 0:03:53.6]} 18... Nd5 {[%clk 0:02:55.3]} 19. Qh2 {[%clk 0:03:48.6]} 19...
N7f6 {[%clk 0:02:38.8]} 20. g5 {[%clk 0:03:44.1]} 20... Nh5 {[%clk 0:02:29.9]}
21. Bxd5 {[%clk 0:03:30.1]} 21... Qxd5 {[%clk 0:02:21.6]} 22. Nf4 {[%clk
0:03:29.1]} 22... Nxf4 {[%clk 0:02:15.2]} 23. Bxf4 {[%clk 0:03:25.6]} 23... Qxf3
{[%clk 0:02:07.1]} 24. Be5 {[%clk 0:03:05.9]} 24... Bxe5 {[%clk 0:01:58.9]} 25.
dxe5 {[%clk 0:03:00.3]} 25... b3 {[%clk 0:01:46.4]} 26. a3 {[%clk 0:02:38.3]}
26... Qe3+ {[%clk 0:01:38.1]} 27. Rd2 {[%clk 0:02:26.7]} 27... Qxg5 {[%clk
0:01:28.2]} 28. e6 {[%clk 0:02:22.8]} 28... Rg7 {[%clk 0:01:21.4]} 29. c3 {[%clk
0:02:01.7]} 29... Rd8 {[%clk 0:01:16.4]} 30. Rd1 {[%clk 0:01:55.8]} 30... h5
{[%clk 0:01:09.4]} 31. Kb1 {[%clk 0:01:38.2]} 31... Rxd2 {[%clk 0:01:07]} 32.
Rxd2 {[%clk 0:01:31.3]} 32... Qf5+ {[%clk 0:01:04.6]} 33. Kc1 {[%clk 0:01:26.3]}
33... Qxe6 {[%clk 0:00:57.3]} 0-1